bitfinex-derivatives/quotes_BTCF0:USTF0_20210706
["timestamp","ask_amount","ask_price","bid_price","bid_amount"]
[1625591490775,0.7372,33708.0,33679.0,1.03330867]
[1625591491013,4.0929,33683.0,33672.0,0.025]
[1625591491133,0.96230176,33673.0,33672.0,0.025]
[1625591491373,1.29792176,33673.0,33672.0,0.025]
[1625591491615,1.53532176,33673.0,33651.0,1.0275194]
[1625591491735,2.03532176,33673.0,33651.0,1.0275194]
[1625591491855,2.53532176,33673.0,33651.0,1.0275194]
[1625591491983,0.2374,33659.0,33651.0,0.7285194]
[1625591492095,5.71045,33652.0,33647.0,1.37002587]
[1625591492335,5.21045,33652.0,33627.0,2.39754527]
[1625591492456,0.2376,33648.0,33627.0,2.39754527]
[1625591492575,0.5982,33640.0,33638.0,0.5941]
[1625591492696,0.5982,33640.0,33627.0,2.39754527]
[1625591492816,0.5,33639.0,33627.0,1.13724527]
[1625591492938,0.5,33639.0,33576.0,0.0897]
[1625591493055,1.7376,33639.0,33620.0,2.63155174]
[1625591493175,1.7376,33639.0,33594.0,0.0886]
[1625591493176,0.96230176,33621.0,33594.0,0.0886]
[1625591493297,0.5,33620.0,33585.0,0.0894]
[1625591493416,0.5,33620.0,33593.0,5.19459701]
[1625591493535,3.9412,33618.0,33617.0,2.70265821]
[1625591493657,3.9412,33618.0,33617.0,2.43345821]
[1625591493776,3.9412,33618.0,33617.0,2.07965821]
[1625591494017,1.27242176,33621.0,33617.0,1.99555821]
[1625591494406,1.27242176,33621.0,33587.0,1.02973909]
[1625591494617,4.7099,33618.0,33587.0,0.34323406]
[1625591494858,4.7099,33618.0,33586.0,0.34326854]
[1625591494980,4.7099,33618.0,33580.0,1.37307418]
[1625591495098,4.7099,33618.0,33577.0,1.54470845]
[1625591495219,0.72172632,33597.0,33591.0,0.24057544]
[1625591495337,0.72172632,33597.0,33588.0,0.24057544]
[1625591495457,0.96902632,33597.0,33585.0,0.24057544]
[1625591495955,0.2473,33597.0,33585.0,0.24057544]
[1625591496182,1.10662385,33633.0,33585.0,0.24057544]
[1625591496184,0.31692351,33635.0,33585.0,0.24057544]
[1625591496297,0.22101,33632.0,33588.0,3.7418]
[1625591496419,0.22101,33632.0,33589.0,1.0]
[1625591496658,0.0882,33631.0,33589.0,1.0]
[1625591496777,0.0882,33631.0,33588.0,3.7418]
[1625591496898,0.22101,33632.0,33588.0,3.7418]
[1625591497020,5.2085,33626.0,33585.0,0.09682628]
[1625591497259,0.57186544,33612.0,33607.0,0.24057544]
[1625591498106,0.33129,33612.0,33607.0,0.24057544]
[1625591499006,0.24057544,33615.0,33607.0,0.24057544]
[1625591499248,0.48115088,33615.0,33614.0,0.24057544]
[1625591499368,0.48115088,33615.0,33607.0,0.24057544]
[1625591499487,0.74955088,33615.0,33607.0,0.24057544]
[1625591500327,0.74955088,33615.0,33607.0,4.57047544]
[1625591500567,0.48115088,33615.0,33607.0,0.24057544]
[1625591501173,0.24057544,33622.0,33614.0,0.48115088]
[1625591501779,0.24057544,33626.0,33614.0,0.48115088]
[1625591502146,0.31575711,33656.0,33614.0,0.48115088]
[1625591502252,1.0896,33677.0,33614.0,0.48115088]
[1625591502253,0.31591407,33660.0,33614.0,0.48115088]
[1625591502371,0.31591407,33660.0,33615.0,0.9536]
[1625591502611,1.42106074,33669.0,33615.0,0.9536]
[1625591502972,3.8909,33650.0,33615.0,0.9536]
[1625591503092,4.16175,33650.0,33615.0,0.9536]
[1625591503213,0.24057544,33621.0,33618.0,0.24057544]
[1625591503332,0.58697544,33621.0,33618.0,0.24057544]
[1625591503693,0.58697544,33621.0,33615.0,0.9536]
[1625591504417,0.24057544,33621.0,33615.0,0.9536]
[1625591504655,0.53778544,33621.0,33615.0,0.9536]
[1625591505198,0.48115088,33616.0,33615.0,0.9536]
[1625591507301,0.48115088,33616.0,33615.0,1.19417544]
[1625591509222,0.48115088,33616.0,33615.0,1.43475088]
[1625591510243,0.24057544,33621.0,33615.0,1.43475088]
[1625591510364,0.24057544,33621.0,33615.0,1.74588088]
[1625591511085,0.24057544,33624.0,33615.0,1.74588088]
[1625591511207,0.057,33665.0,33615.0,1.74588088]
[1625591511328,0.24057544,33633.0,33632.0,0.24057544]
[1625591511446,0.24057544,33633.0,33632.0,0.50928544]
[1625591516430,0.24057544,33636.0,33632.0,0.50928544]
[1625591516551,0.24057544,33640.0,33632.0,0.50928544]
[1625591517273,0.24057544,33640.0,33639.0,0.24057544]
[1625591517392,0.24057544,33640.0,33639.0,0.77332088]
[1625591517753,0.24057544,33645.0,33639.0,0.77332088]
[1625591519314,0.24057544,33640.0,33639.0,0.77332088]
[1625591520515,0.24057544,33645.0,33639.0,0.77332088]
[1625591520636,0.24057544,33649.0,33639.0,0.77332088]
[1625591521358,0.24057544,33649.0,33648.0,0.48115088]
[1625591521476,0.24057544,33649.0,33648.0,0.80412088]
[1625591522197,0.24057544,33649.0,33648.0,0.80829855]
[1625591525446,0.24057544,33649.0,33648.0,0.48532855]
[1625591525686,0.24057544,33649.0,33648.0,0.00417767]
[1625591525804,0.24057544,33649.0,33639.0,0.48115088]
[1625591525925,0.57328544,33649.0,33639.0,0.48115088]
[1625591526285,4.28438544,33649.0,33640.0,0.00418155]
[1625591526648,4.28438544,33649.0,33639.0,0.48115088]
[1625591526948,4.28438544,33649.0,33615.0,0.9536]
[1625591527188,4.28438544,33649.0,33616.0,0.10155136]
[1625591527307,4.28438544,33649.0,33616.0,0.01295136]
[1625591527428,0.24057544,33623.0,33622.0,0.24057544]
[1625591527608,0.57552544,33623.0,33622.0,0.24057544]
[1625591527971,0.57552544,33623.0,33622.0,0.24475393]
[1625591528330,0.33495,33623.0,33622.0,0.24475393]
[1625591529053,0.33495,33623.0,33622.0,0.26975393]
[1625591529354,0.57552544,33623.0,33622.0,0.26975393]
[1625591530614,0.24057544,33623.0,33622.0,0.26975393]
[1625591530976,0.24057544,33627.0,33622.0,0.26975393]
[1625591531281,0.24057544,33627.0,33623.0,0.0041786]
[1625591531399,0.24057544,33627.0,33626.0,0.24057544]
[1625591531938,0.24057544,33627.0,33626.0,0.24475401]
[1625591532540,0.24057544,33627.0,33626.0,0.00417857]
[1625591533019,0.24057544,33627.0,33623.0,0.00417855]
[1625591533141,0.58802544,33627.0,33623.0,0.00417855]
[1625591533387,0.58802544,33627.0,33626.0,0.24057544]
[1625591533629,0.58802544,33627.0,33626.0,0.47389544]
[1625591533745,0.24057544,33633.0,33626.0,0.47389544]
[1625591533868,0.24057544,33633.0,33626.0,0.4780733]
[1625591533983,0.24057544,33636.0,33626.0,0.4780733]
[1625591534111,0.24057544,33636.0,33627.0,0.00417788]
[1625591535367,0.24057544,33635.0,33631.0,0.24057544]
[1625591535728,0.24057544,33635.0,33632.0,0.00417729]
[1625591536453,0.24057544,33639.0,33632.0,0.00417729]
[1625591536576,0.0902,33680.0,33632.0,0.00417729]
[1625591536581,1.0,33679.0,33632.0,0.00417729]
[1625591536820,0.0902,33680.0,33632.0,0.00417729]
[1625591537055,0.01497415,33675.0,33632.0,0.00417729]
[1625591537293,0.01497415,33675.0,33632.0,0.01294864]
[1625591537414,0.03508539,33679.0,33632.0,0.01294864]
[1625591537415,0.24057544,33654.0,33653.0,0.24057544]
[1625591537533,0.24057544,33654.0,33653.0,0.57580544]
[1625591537654,0.24057544,33654.0,33653.0,0.33523]
[1625591537895,0.24057544,33654.0,33653.0,0.33940513]
[1625591538255,0.62154738,33696.0,33653.0,0.33940513]
[1625591538499,0.14838711,33696.0,33653.0,0.33940513]
[1625591538741,0.0896,33705.0,33653.0,0.33940513]
[1625591538742,0.0896,33705.0,33654.0,0.00417368]
[1625591538744,0.01496857,33690.0,33654.0,0.00417368]
[1625591538856,0.01496857,33690.0,33654.0,0.90697368]
[1625591539218,0.05003763,33698.0,33655.0,0.00417325]
[1625591539457,1.35963947,33705.0,33668.0,0.24057544]
[1625591539458,0.24057544,33669.0,33668.0,0.24057544]
[1625591539575,0.24057544,33669.0,33668.0,0.47821544]
[1625591539817,0.24057544,33669.0,33668.0,0.48238861]
[1625591539945,0.24057544,33669.0,33668.0,0.24181317]
[1625591540058,0.24057544,33669.0,33668.0,0.23764]
[1625591540181,0.24057544,33669.0,33654.0,0.9028]
[1625591540898,0.24057544,33669.0,33655.0,0.23396315]
[1625591541440,0.24057544,33669.0,33665.0,0.24057544]
[1625591541560,0.24057544,33669.0,33665.0,0.55177544]
[1625591542468,0.24057544,33669.0,33665.0,0.57677544]
[1625591542827,0.24057544,33669.0,33665.0,0.3362]
[1625591543547,0.48115088,33666.0,33665.0,0.025]
[1625591547639,0.48115088,33666.0,33665.0,0.05]
[1625591548722,0.48115088,33666.0,33665.0,0.39313]
[1625591555695,0.76090088,33666.0,33665.0,0.05]
[1625591557320,0.48115088,33666.0,33665.0,0.05]
[1625591557557,0.48115088,33666.0,33665.0,0.29057544]
[1625591558942,0.48115088,33666.0,33665.0,0.05]
[1625591559605,0.48115088,33666.0,33665.0,0.29057544]
[1625591560688,0.48115088,33666.0,33665.0,0.58948544]
[1625591565019,0.48115088,33666.0,33665.0,0.59365014]
[1625591568799,0.48115088,33666.0,33665.0,0.29474014]
[1625591569521,0.48115088,33666.0,33665.0,0.0541647]
[1625591569643,0.72172632,33666.0,33665.0,0.0541647]
[1625591570003,0.73671425,33666.0,33665.0,0.0453647]
[1625591570129,2.37515675,33666.0,33665.0,0.0088647]
[1625591570243,2.37515675,33666.0,33654.0,0.9028]
[1625591570244,6.23425675,33666.0,33654.0,0.9028]
[1625591570482,0.57349247,33661.0,33654.0,0.9028]
[1625591570601,0.08202271,33659.0,33655.0,0.00416192]
[1625591570902,0.24589511,33659.0,33655.0,0.00416192]
[1625591571383,0.57342799,33659.0,33655.0,0.00416192]
[1625591571623,0.48115088,33656.0,33655.0,0.00416192]
[1625591571742,0.72172632,33656.0,33655.0,0.00416192]
[1625591572224,0.72172632,33656.0,33654.0,0.9028]
[1625591572347,1.8665846,33656.0,33654.0,0.9028]
[1625591572465,0.01500982,33655.0,33654.0,0.9028]
[1625591572585,4.5887441,33655.0,33654.0,0.9028]
[1625591572885,4.5887441,33655.0,33654.0,0.55188442]
[1625591573246,4.5887441,33655.0,33633.0,0.24057544]
[1625591573606,0.08180794,33649.0,33634.0,0.00416261]
[1625591573727,0.24057544,33640.0,33639.0,0.24057544]
[1625591574088,0.24057544,33640.0,33639.0,0.24473772]
[1625591576069,0.24057544,33640.0,33639.0,0.00416228]
[1625591576550,0.24057544,33640.0,33637.0,0.00416267]
[1625591576790,0.24057544,33640.0,33636.0,0.00416291]
[1625591577210,0.24057544,33640.0,33634.0,0.00416323]
[1625591577450,0.24057544,33640.0,33633.0,0.24057544]
[1625591577693,0.48115088,33634.0,33629.0,0.24057544]
[1625591578292,0.48115088,33634.0,33630.0,0.00416295]
[1625591579374,0.48115088,33634.0,33628.0,0.00416305]
[1625591579613,0.48115088,33634.0,33627.0,0.26008876]
[1625591579733,0.48115088,33628.0,33627.0,0.26008876]
[1625591579853,0.48115088,33628.0,33626.0,0.60685464]
[1625591580095,0.48115088,33628.0,33626.0,0.08669186]
[1625591580274,0.48115088,33628.0,33627.0,0.00416313]
[1625591580275,0.78575088,33628.0,33627.0,0.00416313]
[1625591580515,0.78575088,33628.0,33622.0,0.63190043]
[1625591580755,0.78575088,33628.0,33622.0,0.025]
[1625591581115,0.78575088,33628.0,33623.0,0.00416414]
[1625591581360,0.78575088,33628.0,33622.0,0.025]
[1625591581716,0.24057544,33623.0,33622.0,0.025]
[1625591583164,0.24057544,33623.0,33622.0,0.0001]
[1625591586229,0.24057544,33623.0,33611.0,0.09407544]
[1625591586772,0.24057544,33623.0,33608.0,0.08657685]
[1625591586892,0.24057544,33623.0,33607.0,0.24057544]
[1625591587854,0.48115088,33608.0,33607.0,0.24057544]
[1625591588215,0.24057544,33623.0,33607.0,0.24057544]
[1625591588334,0.24057544,33623.0,33607.0,0.49401544]
[1625591588456,0.24057544,33623.0,33607.0,0.75352141]
[1625591588997,0.24057544,33623.0,33607.0,0.49401544]
[1625591589237,0.24057544,33623.0,33607.0,0.58051371]
[1625591589477,0.24057544,33623.0,33607.0,0.49401544]
[1625591589596,0.24057544,33623.0,33607.0,0.75341694]
[1625591589837,0.24057544,33614.0,33613.0,0.24057544]
[1625591591882,0.48115088,33614.0,33607.0,0.24057544]
[1625591593085,0.72859088,33614.0,33607.0,0.24057544]
[1625591593567,0.72859088,33614.0,33605.0,0.25931446]
[1625591593688,0.72859088,33614.0,33566.0,1.0]
[1625591593689,0.72859088,33614.0,33599.0,0.25940829]
[1625591593808,0.48115088,33600.0,33599.0,0.25940829]
[1625591593929,0.48115088,33600.0,33598.0,0.24057544]
[1625591594047,0.82743088,33600.0,33598.0,0.24057544]
[1625591594408,0.82743088,33600.0,33596.0,0.55207116]
[1625591594529,0.82743088,33600.0,33596.0,0.25917116]
[1625591594652,0.82743088,33600.0,33594.0,0.84533774]
[1625591594893,0.82743088,33600.0,33594.0,0.24057544]
[1625591595252,0.82743088,33600.0,33589.0,0.9041]
[1625591595974,0.72172632,33590.0,33589.0,0.9041]
[1625591596094,0.96169632,33590.0,33589.0,0.9041]
[1625591596454,0.96169632,33590.0,33582.0,0.08627722]
[1625591596574,4.7963,33588.0,33582.0,0.08627722]
[1625591596695,4.7963,33588.0,33577.0,0.086291]
[1625591597062,4.7963,33588.0,33572.0,1.44864944]
[1625591597064,4.7963,33588.0,33573.0,0.25890105]
[1625591597300,4.7963,33588.0,33568.0,1.20820489]
[1625591597302,4.7963,33588.0,33569.0,0.01893236]
[1625591597425,4.7963,33588.0,33568.0,0.86310787]
[1625591597426,4.7963,33588.0,33568.0,0.63504023]
[1625591597542,4.7963,33588.0,33536.0,3.0548452]
[1625591597547,4.7963,33588.0,33557.0,0.66169152]
[1625591597781,4.7963,33588.0,10167.0,0.52044427]
[1625591597782,4.7963,33588.0,33547.0,0.34427287]
[1625591597788,0.31626411,33586.0,33547.0,0.34427287]
[1625591597897,0.96230176,33548.0,33547.0,0.34427287]
[1625591598019,0.96230176,33548.0,33541.0,1.37709146]
[1625591598028,1.30846176,33548.0,33540.0,0.34434207]
[1625591598140,0.82731088,33548.0,33540.0,0.34434207]
[1625591598258,0.82731088,33548.0,33538.0,1.0330262]
[1625591598260,0.82731088,33548.0,33538.0,0.34436756]
[1625591598380,0.82731088,33548.0,33537.0,0.21703511]
[1625591598499,3.8196,33543.0,33536.0,0.34437693]
[1625591598738,3.8196,33543.0,33534.0,0.34440634]
[1625591599098,3.8196,33543.0,33529.0,1.03326923]
[1625591599099,3.8196,33543.0,33531.0,0.34442308]
[1625591599100,0.0904,33542.0,33531.0,0.34442308]
[1625591599341,0.0904,33542.0,33522.0,1.54990385]
[1625591599342,0.0904,33542.0,33525.0,0.34444438]
[1625591599578,0.0904,33542.0,33516.0,1.5499997]
[1625591599579,0.0904,33542.0,33515.0,0.3426268]
[1625591599818,0.82731088,33548.0,33509.0,1.37050721]
[1625591599819,0.82731088,33548.0,33525.0,3.6178]
[1625591599939,0.24057544,33541.0,33540.0,0.24057544]
[1625591600177,0.50537544,33541.0,33540.0,0.24057544]
[1625591600301,0.2648,33541.0,33540.0,0.24057544]
[1625591600419,0.26515,33570.0,33540.0,0.24057544]
[1625591600538,0.26515,33570.0,33541.0,0.9212]
[1625591600659,0.26515,33570.0,33541.0,1.24465]
[1625591601377,0.31328369,33578.0,33541.0,1.24465]
[1625591601499,0.31351448,33582.0,33541.0,1.24465]
[1625591601740,0.31296431,33586.0,33541.0,1.24465]
[1625591601920,0.24057544,33571.0,33570.0,0.24057544]
[1625591602160,0.24057544,33571.0,33570.0,0.55540544]
[1625591602401,0.24057544,33571.0,33570.0,0.31483]
[1625591602523,0.24057544,33571.0,33570.0,3.93693]
[1625591602762,0.24057544,33574.0,33570.0,3.93693]
[1625591602883,0.31382817,33595.0,33570.0,3.93693]
[1625591603004,0.31416106,33599.0,33570.0,3.93693]
[1625591603125,0.31416106,33599.0,33571.0,0.9872]
[1625591603366,0.31459068,33603.0,33571.0,0.9872]
[1625591603604,0.3141456,33604.0,33571.0,0.9872]
[1625591603846,0.31410179,33606.0,33571.0,0.9872]
[1625591603966,0.24057544,33580.0,33579.0,0.24057544]
[1625591604087,0.24057544,33580.0,33579.0,0.55921544]
[1625591604929,0.24057544,33580.0,33579.0,0.31864]
[1625591605050,0.24057544,33580.0,33571.0,0.9872]
[1625591606011,0.48115088,33572.0,33571.0,0.9872]
[1625591606129,0.70321088,33572.0,33571.0,0.9872]
[1625591606488,0.70321088,33572.0,12154.0,1.4871]
[1625591606489,0.70321088,33572.0,33530.0,0.34049304]
[1625591606729,0.70321088,33572.0,33528.0,0.3404989]
[1625591606849,0.70321088,33572.0,33531.0,0.0041504]
[1625591607211,0.70321088,33572.0,33525.0,3.6178]
[1625591607812,0.70321088,33572.0,33526.0,0.00415027]
[1625591607931,0.24057544,33552.0,33550.0,0.24057544]
[1625591608051,0.24057544,33552.0,33550.0,0.47252544]
[1625591608472,0.24057544,33555.0,33550.0,0.47252544]
[1625591608830,0.057,33591.0,33550.0,0.47252544]
[1625591608952,0.31149425,33595.0,33550.0,0.47252544]
[1625591609194,0.31189237,33599.0,33550.0,0.47252544]
[1625591609431,1.0,33597.0,33550.0,0.47252544]
[1625591609731,1.23849537,33601.0,33550.0,0.47252544]
[1625591609732,0.31147448,33598.0,33550.0,0.47252544]
[1625591609972,0.24057544,33566.0,33565.0,0.24057544]
[1625591610214,0.24057544,33566.0,33565.0,0.51441544]
[1625591610453,0.24057544,33569.0,33565.0,0.51441544]
[1625591610573,0.24057544,33573.0,33565.0,0.51441544]
[1625591611955,0.24057544,33566.0,33565.0,0.51441544]
[1625591613872,0.24057544,33570.0,33565.0,0.51441544]
[1625591613992,0.24057544,33570.0,33569.0,0.24057544]
[1625591621799,0.24057544,33573.0,33569.0,0.24057544]
[1625591621920,0.34209848,33610.0,33569.0,0.24057544]
[1625591622039,0.34209848,33610.0,33581.0,0.24057544]
[1625591622040,0.24057544,33582.0,33581.0,0.24057544]
[1625591622160,0.24057544,33585.0,33581.0,0.24057544]
[1625591622281,0.24057544,33585.0,33581.0,0.58029544]
[1625591623184,0.24057544,33588.0,33581.0,0.58029544]
[1625591623724,0.24057544,33588.0,33587.0,4.4201]
[1625591624087,0.24057544,33588.0,33587.0,4.66067544]
[1625591624448,0.24057544,33594.0,33587.0,4.66067544]
[1625591624567,0.24057544,33597.0,33587.0,4.66067544]
[1625591624929,0.24057544,33597.0,33588.0,0.00414118]
[1625591625050,0.24057544,33597.0,33588.0,0.21593118]
[1625591625409,0.24057544,33597.0,33589.0,0.00414017]
[1625591626131,0.24057544,33597.0,33591.0,0.24057544]
[1625591626489,0.24057544,33597.0,33592.0,0.00414088]
[1625591628053,0.24057544,33593.0,33592.0,0.00414088]
[1625591629860,0.3153594,33615.0,33592.0,0.00414088]
[1625591629978,0.10960343,33617.0,33592.0,0.32723088]
[1625591630097,0.10960343,33617.0,33616.0,0.96230176]
[1625591630217,0.9492103,33629.0,33616.0,1.30420176]
[1625591630458,0.95192302,33638.0,33616.0,1.30420176]
[1625591630577,0.95192302,33638.0,33622.0,4.9646]
[1625591630698,0.95212283,33640.0,33616.0,1.30420176]
[1625591630939,0.94924226,33639.0,33616.0,1.30420176]
[1625591631297,0.94924226,33639.0,33616.0,6.26960176]
[1625591631419,0.94703571,33640.0,33616.0,6.26960176]
[1625591632077,0.24057544,33630.0,33629.0,0.24057544]
[1625591632199,0.24057544,33630.0,33629.0,0.58574544]
[1625591632318,0.24057544,33630.0,33629.0,0.34517]
[1625591632439,0.24057544,33630.0,33616.0,0.48115088]
[1625591632440,0.74057544,33630.0,33616.0,0.48115088]
[1625591632562,0.74057544,33630.0,33601.0,0.057]
[1625591632683,0.58574544,33626.0,33593.0,0.9668]
[1625591632803,1.04154544,33630.0,33593.0,0.9668]
[1625591633043,1.09854544,33630.0,33593.0,0.9668]
[1625591633284,1.09854544,33630.0,33594.0,0.06113774]
[1625591633525,1.09854544,33630.0,33594.0,0.057]
[1625591633526,0.94360771,33628.0,33594.0,0.057]
[1625591633646,0.5,33627.0,33594.0,0.057]
[1625591633768,1.44329793,33627.0,33594.0,0.057]
[1625591634130,0.24057544,33612.0,33611.0,0.24057544]
[1625591636351,0.48115088,33615.0,33611.0,0.24057544]
[1625591636543,1.31631234,33630.0,33611.0,0.24057544]
[1625591636544,1.31631234,33630.0,33611.0,0.45152544]
[1625591636545,0.94424123,33629.0,33611.0,0.45152544]
[1625591636772,0.5,33634.0,33611.0,0.45152544]
[1625591636773,0.94544851,33633.0,33611.0,0.45152544]
[1625591637433,0.94562819,33632.0,33611.0,0.45152544]
[1625591637854,0.94438344,33633.0,33611.0,0.45152544]
[1625591637974,0.94438344,33633.0,33612.0,0.9005]
[1625591638095,0.24057544,33617.0,33616.0,0.24057544]
[1625591638214,0.47744544,33617.0,33616.0,0.24057544]
[1625591638335,0.47744544,33617.0,33612.0,0.9005]
[1625591639422,0.24057544,33617.0,33612.0,0.9005]
[1625591640144,0.24057544,33617.0,33616.0,0.24057544]
[1625591640264,0.24057544,33617.0,33616.0,0.55509544]
[1625591641889,0.24057544,33621.0,33616.0,0.55509544]
[1625591642127,1.18713876,33633.0,33620.0,0.24057544]
[1625591642252,0.24057544,33633.0,33620.0,0.24057544]
[1625591644231,0.24057544,33633.0,33631.0,0.24057544]
[1625591644355,0.24057544,33633.0,33631.0,0.21693]
[1625591646640,0.24057544,33636.0,33631.0,0.21693]
[1625591648143,0.24057544,33632.0,33631.0,0.21693]
[1625591649284,0.24057544,33632.0,33627.0,0.24057544]
[1625591650245,0.24057544,33628.0,33627.0,0.24057544]
[1625591656200,0.24057544,33632.0,33627.0,0.24057544]
[1625591656319,0.24057544,33632.0,33631.0,0.24057544]
[1625591657043,0.24057544,33636.0,33631.0,0.24057544]
[1625591658363,0.24057544,33636.0,33635.0,0.45248544]
[1625591663710,0.24057544,33636.0,33635.0,0.24057544]
[1625591663836,0.54073544,33636.0,33631.0,0.24057544]
[1625591663958,0.54073544,33636.0,33627.0,0.24057544]
[1625591664073,1.04073544,33636.0,33627.0,0.24057544]
[1625591664193,1.04073544,33636.0,33601.0,0.68826669]
[1625591664490,0.24057544,33622.0,33621.0,0.24057544]
[1625591664973,0.24057544,33622.0,33621.0,0.24468858]
[1625591665572,0.24057544,33622.0,33621.0,0.24057544]
[1625591665693,0.53454544,33622.0,33621.0,0.24057544]
[1625591665812,0.53454544,33622.0,33621.0,0.24468901]
[1625591668339,0.24057544,33622.0,33621.0,0.24468901]
[1625591668464,0.24057544,33630.0,33621.0,0.48526445]
[1625591668586,0.24057544,33630.0,33621.0,0.78331445]
[1625591668819,0.24057544,33630.0,33622.0,0.00411354]
[1625591669841,0.48115088,33636.0,33622.0,0.00411354]
[1625591670092,0.01520001,33635.0,33622.0,0.00411354]
[1625591670443,0.48115088,33636.0,33622.0,0.00411354]
[1625591670444,0.48115088,33636.0,33634.0,0.48115088]
[1625591670567,0.48115088,33636.0,33634.0,0.80100088]
[1625591671465,0.01519972,33635.0,33634.0,0.80100088]
[1625591671949,0.01519972,33635.0,33634.0,0.31985]
[1625591673394,0.01519972,33635.0,33621.0,0.83620088]
[1625591673395,0.01519972,33635.0,33621.0,0.77920088]
[1625591673514,0.85683972,33635.0,33621.0,0.48115088]
[1625591673634,0.85683972,33635.0,33629.0,0.00411349]
[1625591673876,1.48544755,33635.0,33629.0,0.00411349]
[1625591673995,0.015202,33634.0,33622.0,0.0041138]
[1625591674235,0.64374466,33634.0,33621.0,0.24057544]
[1625591674417,0.64374466,33634.0,33623.0,0.00411369]
[1625591674536,0.48115088,33624.0,33623.0,0.00411369]
[1625591674655,0.79691088,33624.0,33623.0,0.00411369]
[1625591674776,0.79691088,33624.0,33622.0,0.00411372]
[1625591675018,0.79691088,33624.0,33623.0,0.00411369]
[1625591675256,0.79691088,33624.0,33622.0,0.00411389]
[1625591678857,0.48115088,33624.0,33622.0,0.00411389]
[1625591682532,0.81960088,33624.0,33622.0,0.00411389]
[1625591682643,0.81960088,33624.0,33616.0,0.24057544]
[1625591682644,0.24057544,33623.0,33616.0,0.24057544]
[1625591682885,0.24057544,33623.0,33617.0,0.00411713]
[1625591683606,0.86542098,33623.0,33617.0,0.00411713]
[1625591683725,0.01519134,33622.0,33616.0,0.24057544]
[1625591683846,0.62357921,33621.0,33616.0,0.24057544]
[1625591684088,0.62187122,33620.0,33616.0,0.24057544]
[1625591684208,0.63706322,33620.0,33616.0,0.24057544]
[1625591684570,0.48115088,33617.0,33616.0,0.24057544]
[1625591684810,0.78632088,33617.0,33616.0,0.24057544]
[1625591684931,1.28632088,33617.0,33613.0,0.24057544]
[1625591685051,1.28632088,33617.0,33612.0,0.9005]
[1625591685296,1.92106076,33617.0,33612.0,0.9005]
[1625591685535,0.61919087,33614.0,33612.0,0.7731]
[1625591685654,0.5,33613.0,33612.0,0.7731]
[1625591685776,2.04852142,33613.0,33612.0,0.7731]
[1625591686495,2.06371784,33613.0,33612.0,0.7731]
[1625591686616,2.54486872,33613.0,33612.0,0.7731]
[1625591686737,2.54486872,33613.0,33612.0,0.6431]
[1625591686858,2.54486872,33613.0,33594.0,0.62097415]
[1625591686859,3.62801371,33613.0,33594.0,0.62097415]
[1625591687337,0.5,33606.0,33589.0,1.0455754]
[1625591687577,0.5,33606.0,33588.0,1.21983797]
[1625591687578,0.92695039,33603.0,33588.0,1.04685214]
[1625591687698,0.5,33602.0,33588.0,1.04685214]
[1625591687821,0.46327096,33601.0,33588.0,0.52344236]
[1625591687938,0.5,33600.0,33588.0,0.52344236]
[1625591688063,0.72002,33600.0,33587.0,0.52292331]
[1625591688543,0.72002,33600.0,33584.0,0.52294248]
[1625591688544,0.46276491,33598.0,33584.0,0.52294248]
[1625591688661,0.48115088,33585.0,33584.0,0.52294248]
[1625591688782,0.48115088,33585.0,33582.0,1.04588496]
[1625591688783,0.48115088,33585.0,33582.0,0.52297052]
[1625591688902,0.24057544,33587.0,33582.0,0.52297052]
[1625591689038,0.24057544,33587.0,33581.0,0.24057544]
[1625591689039,0.24057544,33591.0,33581.0,0.24057544]
[1625591689040,0.24057544,33591.0,33584.0,1.56883018]
[1625591689264,0.24057544,33591.0,33589.0,0.5228955]
[1625591689504,0.24057544,33591.0,33590.0,1.5699681]
[1625591689984,0.24057544,33591.0,33590.0,0.5233227]
[1625591690706,0.24057544,33591.0,33590.0,1.00447358]
[1625591691488,0.24057544,33591.0,33590.0,2.05009466]
[1625591691728,0.24057544,33591.0,33590.0,3.26994597]
[1625591691968,0.24057544,33591.0,33590.0,2.05009466]
[1625591692151,0.24057544,33598.0,33590.0,2.05009466]
[1625591692271,0.24057544,33601.0,33590.0,3.26940248]
[1625591692393,0.46279042,33608.0,33590.0,3.26940248]
[1625591692511,0.92542664,33610.0,33590.0,3.26940248]
[1625591692512,0.46325177,33610.0,33595.0,0.52253181]
[1625591692630,0.70382721,33610.0,33609.0,0.48115088]
[1625591692756,0.24057544,33610.0,33609.0,0.48115088]
[1625591692872,0.24057544,33610.0,33609.0,0.69486088]
[1625591693113,0.24057544,33613.0,33609.0,0.69486088]
[1625591693235,0.24057544,33617.0,33609.0,0.69486088]
[1625591694735,0.24057544,33617.0,33616.0,0.72780088]
[1625591694978,0.24057544,33624.0,33616.0,0.72780088]
[1625591694979,0.70566549,33624.0,33616.0,0.72780088]
[1625591695222,0.46502464,33623.0,33616.0,0.72780088]
[1625591695471,0.24057544,33624.0,33616.0,0.72780088]
[1625591695472,0.70582045,33624.0,33616.0,0.72780088]
[1625591695706,0.24057544,33624.0,33616.0,0.72780088]
[1625591696724,0.24057544,33624.0,33623.0,0.48115088]
[1625591696845,0.24057544,33624.0,33623.0,0.73800088]
[1625591697805,0.24057544,33624.0,33616.0,0.72780088]
[1625591697927,0.24057544,33624.0,33616.0,0.24057544]
[1625591697928,0.92728899,33624.0,33616.0,0.24057544]
[1625591698045,1.42728899,33624.0,33610.0,0.52253166]
[1625591698168,1.42728899,33624.0,33608.0,1.04506332]
[1625591698169,0.46260677,33620.0,33606.0,1.42348045]
[1625591698648,0.46260677,33620.0,33606.0,0.9009]
[1625591698649,0.45869991,33617.0,33606.0,0.9009]
[1625591698767,0.24057544,33610.0,33609.0,0.24057544]
[1625591698888,0.46710544,33610.0,33609.0,0.24057544]
[1625591699128,0.22653,33610.0,33609.0,0.24057544]
[1625591700330,0.22653,33610.0,33606.0,0.9009]
[1625591700810,0.48115088,33607.0,33606.0,0.9009]
[1625591701652,0.75941088,33607.0,33606.0,0.9009]
[1625591702800,0.48115088,33607.0,33606.0,1.14147544]
[1625591706830,0.48115088,33607.0,33606.0,1.43735544]
[1625591712301,0.24057544,33611.0,33606.0,1.43735544]
[1625591712780,0.24057544,33611.0,33610.0,0.24057544]
[1625591713144,0.24057544,33611.0,33606.0,1.43735544]
[1625591713263,0.24057544,33611.0,33606.0,1.19678]
[1625591714828,0.24057544,33611.0,33610.0,0.24057544]
[1625591717052,0.24057544,33611.0,33606.0,1.19678]
[1625591717188,0.24057544,33611.0,33604.0,0.52238856]
[1625591717292,0.74057544,33611.0,33604.0,0.30878856]
[1625591717413,0.74057544,33611.0,33602.0,0.78007787]
[1625591717536,0.74057544,33611.0,33591.0,2.9606652]
[1625591717537,0.74057544,33611.0,33594.0,0.40400444]
[1625591717538,0.7,33608.0,33594.0,0.40400444]